fUST/lending_fUST_20250526
["ID","MTS","AMOUNT","RATE_DAILY","PERIOD"]
[362413203,1748261432646,-150.0,0.00023434,2]
[362413204,1748261432657,-828.35,0.00023488,3]
[362413205,1748261432668,-1004.0,0.000235,2]
[362413206,1748261432678,-828.35,0.00023588,7]
[362413207,1748261432688,-828.35,0.00023688,2]
[362413208,1748261432699,-207.4,0.00023747,2]
[362413209,1748261432709,-828.35,0.00023788,2]
[362413210,1748261432719,-493.75384146,0.00023888,4]
[362413211,1748261432732,-334.59615854,0.00023888,4]
[362413212,1748261432742,-200.38116403,0.000239,10]
[362413213,1748261432752,-200.38116381,0.00023969,10]
[362413214,1748261432762,-828.35,0.00023988,7]
[362413215,1748261432772,-200.38116381,0.00024038,10]
[362413216,1748261432781,-428.83922466,0.00024087,2]
[362413217,1748261432791,-500.0,0.00024087,2]
[362413218,1748261432802,-496.45332721,0.00024087,2]
[362413219,1748261432814,-3.54667279,0.00024087,2]
[362413220,1748261432825,-559.87927697,0.00024087,2]
[362413221,1748261432835,-500.0,0.00024087,2]
[362413222,1748261432845,-500.0,0.00024087,2]
[362413223,1748261432855,-500.0,0.00024087,2]
[362413224,1748261432865,-382.64120986,0.00024087,2]
[362413225,1748261432875,-16.84603498,0.00024088,15]
[362413226,1748261432888,-407.01461502,0.00024088,15]
[362413227,1748261432897,-828.35,0.00024088,3]
[362413228,1748261432907,-200.38116381,0.00024107,10]
[362413229,1748261432917,-200.38116381,0.00024176,10]
[362413230,1748261432926,-828.35,0.00024188,5]
[362413231,1748261432936,-443.43,0.0002423,2]
[362413232,1748261432946,-200.38116381,0.00024245,10]
[362413233,1748261432955,-828.35,0.00024288,4]
[362413234,1748261432968,-200.38116381,0.00024314,10]
[362413235,1748261432979,-200.38116381,0.00024383,11]
[362413236,1748261432990,-828.35,0.00024388,7]
[362413237,1748261432999,-200.38116381,0.00024452,11]
[362413238,1748261433009,-828.35,0.00024488,6]
[362413239,1748261433020,-430.206137,0.000245,3]
[362413240,1748261433030,-200.38116381,0.00024521,11]
[362413241,1748261433040,-828.35,0.00024588,3]
[362413242,1748261433050,-200.38116381,0.0002459,11]
[362413243,1748261433060,-430.0,0.00024657,3]
[362413244,1748261433069,-309.03047804,0.00024657,3]
[362413245,1748261433082,-430.0,0.00024657,3]
[362413246,1748261433093,-435.84473469,0.00024657,3]
[362413247,1748261433108,-430.0,0.00024657,2]
[362413248,1748261433124,-430.0,0.00024657,2]
[362413249,1748261433140,-430.0,0.00024657,2]
[362413250,1748261433151,-11861.12803084,0.00024657,7]
[362413251,1748261433165,-2962.77466811,0.00024657,7]
[362413252,1748261433178,-822.51668041,0.00024657,7]
[362413272,1748261438075,-508.66200448,0.00024088,15]
[362413274,1748261438089,-268.46692552,0.00024088,15]
[362413276,1748261438099,-329.94344376,0.00024657,2]
[362413279,1748261438113,-170.05655624,0.00024657,2]
[362413281,1748261438123,-500.0,0.00024657,2]
[362413283,1748261438133,-91.55429455,0.00024657,2]
[362413285,1748261438146,-460.50177921,0.00024657,2]
[362413287,1748261438156,-500.0,0.00024657,2]
[362413289,1748261438165,-500.0,0.00024657,2]
[362413291,1748261438175,-364.60531245,0.00024657,2]
[362413293,1748261438187,-500.0,0.00024657,2]
[362413296,1748261438197,-500.0,0.00024657,2]
[362413298,1748261438207,-313.79192336,0.00024657,2]
[362413300,1748261438216,-500.0,0.00024657,2]
[362413302,1748261438226,-1297.7055301,0.00024657,7]
[362413364,1748261440468,-713.0,0.00024088,15]
[362413365,1748261440479,-3180.73239231,0.00024657,7]
[362413394,1748261443199,-3597.39875991,0.00024657,7]
[362413395,1748261443210,-229.15402412,0.00024657,7]
[362413396,1748261443220,-202.58853385,0.00024658,2]
[362413398,1748261443230,-200.38116381,0.00024659,11]
[362413400,1748261443241,-828.35,0.00024688,2]
[362413402,1748261443251,-200.38116381,0.00024728,11]
[362413404,1748261443260,-828.35,0.00024788,7]
[362413406,1748261443270,-200.0,0.0002479,3]
[362413407,1748261443279,-200.0,0.0002479,2]
[362413408,1748261443289,-200.38116381,0.00024797,11]
[362413409,1748261443298,-430.0,0.00024799,2]
[362413410,1748261443309,-9495.96344727,0.000248,2]
[362413411,1748261443321,-7808.41194173,0.000248,2]
[362413413,1748261443331,-200.38116381,0.00024866,12]
[362413416,1748261443341,-828.35,0.00024888,7]
[362413419,1748261443352,-524.66,0.0002489,3]
[362413421,1748261443363,-5686.86,0.00024898,2]
[362413423,1748261443372,-500.0,0.00024899,30]
[362413425,1748261443382,-331.2,0.00024899,2]
[362413426,1748261443392,-160.0,0.00024899,2]
[362413427,1748261443402,-2000.0,0.000249,2]
[362413428,1748261443413,-237.99,0.000249,31]
[362413429,1748261443422,-237.99,0.000249,31]
[362413430,1748261443432,-237.99,0.000249,31]
[362413431,1748261443442,-237.99,0.000249,31]
[362413432,1748261443452,-237.99,0.000249,31]
[362413433,1748261443462,-237.99,0.000249,31]
[362413434,1748261443471,-237.99,0.000249,31]
[362413435,1748261443481,-237.99,0.000249,31]
[362413436,1748261443491,-237.99,0.000249,31]
[362413437,1748261443501,-237.99,0.000249,31]
[362413438,1748261443511,-237.99,0.000249,31]
[362413439,1748261443521,-237.99,0.000249,31]
[362413440,1748261443531,-237.99,0.000249,31]
[362413441,1748261443541,-237.99,0.000249,31]
[362413442,1748261443551,-237.99,0.000249,31]
[362413443,1748261443561,-237.99,0.000249,31]
[362413444,1748261443571,-192.33715978,0.000249,2]
[362413445,1748261443581,-500.0,0.00024918,30]
[362413446,1748261443590,-500.0,0.00024918,30]
[362413447,1748261443601,-200.38116381,0.00024934,12]
[362413448,1748261443611,-500.0,0.00024973,2]
[362413449,1748261443622,-500.0,0.00024973,2]
[362413450,1748261443632,-500.0,0.00024973,2]
[362413451,1748261443642,-1000.0,0.00024973,2]
[362413452,1748261443652,-500.0,0.00024973,2]
[362413453,1748261443662,-215.334662,0.00024973,2]
[362413454,1748261443671,-500.0,0.00024973,2]
[362413455,1748261443681,-828.35,0.00024988,2]
[362413456,1748261443691,-3699.42877853,0.0002499,5]
[362413457,1748261443701,-2271.71007351,0.00025,2]
[362413458,1748261443710,-3025.46961955,0.00025,3]
[362413459,1748261443720,-27028.99357384,0.00025,30]
[362413460,1748261446046,-629.4419,0.00024088,15]
[362413461,1748261446056,-1371.0581,0.00025,30]
[362413462,1748261446204,-0.1272787,0.00025,30]
[362413464,1748261696879,160.395973,0.00013699,2]
[362413469,1748262434137,-500.0,0.00018721,2]
[362413470,1748262434161,-574.92793124,0.000189,2]
[362413471,1748262434182,-756.1637342,0.00018973,2]
[362413472,1748262434204,-13.42533964,0.00019178,2]
[362413532,1748262632306,-436.2661463,0.00018913,2]
[362413533,1748262632317,-1865.75757313,0.00018924,2]
[362413535,1748262632402,-403.67032737,0.00018924,2]
[362413536,1748262632412,-176.51704036,0.00019178,2]
[362413537,1748262632422,-460.57154702,0.00019657,2]
[362413538,1748262632434,-39.42845298,0.00019657,2]
[362413539,1748262632444,-300.0,0.00019714,2]
[362413540,1748262632454,-300.0,0.00019714,2]
[362413541,1748262632463,-300.0,0.00019714,2]
[362413542,1748262632473,-300.0,0.00019715,2]
[362413543,1748262632483,-1200.0,0.00019753,2]
[362413544,1748262632493,-12654.40314616,0.00019754,2]
[362413545,1748262632503,-160.0,0.00019754,2]
[362413546,1748262632512,-160.0,0.00019754,2]
[362413547,1748262632522,-423.08503179,0.00019754,2]
[362413548,1748262632532,-229.15402412,0.00019754,2]
[362413549,1748262632542,-286.06075798,0.00019775,2]
[362413550,1748262632552,-466.24366124,0.000199,2]
[362413551,1748262632562,-881.95832032,0.0002,14]
[362413552,1748262632573,-466.24366122,0.00020107,2]
[362413553,1748262632583,-155.29179201,0.00020138,2]
[362413554,1748262632592,-13179.8247033,0.0002015,2]
[362413568,1748262638193,-383.2852875,0.000189,2]
[362413570,1748262638203,-300.0,0.00019753,2]
[362413572,1748262638214,-500.0,0.00020144,2]
[362413574,1748262638224,-500.0,0.00020144,2]
[362413576,1748262638234,-500.0,0.00020144,2]
[362413578,1748262638244,-288.67557821,0.00020144,2]
[362413688,1748262643257,-211.32442179,0.00020144,2]
[362413689,1748262643266,-500.0,0.00020144,2]
[362413690,1748262643275,-514.95646278,0.00020144,2]
[362413691,1748262643285,-500.0,0.00020144,2]
[362413692,1748262643295,-500.0,0.00020144,2]
[362413693,1748262643305,-500.0,0.00020144,2]
[362413694,1748262643317,-500.0,0.00020144,2]
[362413695,1748262643327,-500.0,0.00020144,2]
[362413696,1748262643337,-412.07654582,0.00020144,2]
[362413697,1748262643349,-446.5382307,0.00020144,2]
[362413698,1748262643360,-500.0,0.00020144,2]
[362413699,1748262643370,-227.10673566,0.00020144,2]
[362413700,1748262643382,-500.0,0.00020144,2]
[362413701,1748262643392,-500.0,0.00020144,2]
[362413702,1748262643402,-500.0,0.00020144,2]
[362413703,1748262643413,-500.0,0.00020144,2]
[362413704,1748262643423,-500.0,0.00020144,2]
[362413705,1748262643432,-500.0,0.00020144,2]
[362413706,1748262643442,-500.0,0.00020144,2]
[362413707,1748262643451,-500.0,0.00020144,2]
[362413708,1748262643460,-500.0,0.00020144,2]
[362413709,1748262643471,-500.0,0.00020144,2]
[362413710,1748262643481,-500.0,0.00020144,2]
[362413711,1748262643492,-500.0,0.00020144,2]
[362413712,1748262643502,-500.0,0.00020144,2]
[362413713,1748262643514,-500.0,0.00020144,2]
[362413714,1748262643524,-348.19237614,0.00020144,2]
[362413715,1748262643535,-11720.1752967,0.0002015,2]
[362413716,1748262643544,-500.0,0.0002028,2]
[362413717,1748262643554,-1000.0,0.0002028,2]
[362413718,1748262643563,-466.24366122,0.00020314,3]
[362413719,1748262643573,-500.0,0.00020511,2]
[362413720,1748262643583,-153.38429643,0.00020511,2]
[362413721,1748262643592,-500.0,0.00020511,2]
[362413722,1748262643602,-500.0,0.00020511,2]
[362413723,1748262643612,-500.0,0.00020511,2]
[362413724,1748262643761,-500.0,0.00020511,2]
[362413725,1748262643780,-500.0,0.00020511,2]
[362413726,1748262643790,-466.24366122,0.00020521,3]
[362413727,1748262643800,-500.0,0.0002057,2]
[362413728,1748262643810,-500.0,0.0002057,2]
[362413729,1748262643820,-209.69237098,0.0002057,2]
[362413730,1748262643829,-500.0,0.0002057,2]
[362413731,1748262643839,-500.0,0.0002057,2]
[362413732,1748262643849,-500.98959904,0.0002057,2]
[362413733,1748262643859,-198.15240893,0.00020728,3]
[362413734,1748262643873,-268.09125229,0.00020728,3]
[362413735,1748262643882,-2000.0,0.00020828,2]
[362413736,1748262643891,-500.0,0.00020856,2]
[362413737,1748262643901,-466.24366122,0.00020934,4]
[362413738,1748262643910,-500.0,0.00020978,2]
[362413739,1748262643920,-500.0,0.00020978,2]
[362413740,1748262643930,-153.813,0.00021012,2]
[362413741,1748262643939,-500.0,0.00021049,2]
[362413742,1748262643948,-408.40704855,0.00021049,2]
[362413743,1748262643959,-91.59295145,0.00021049,2]
[362413744,1748262643969,-500.0,0.00021049,2]
[362413745,1748262643979,-500.0,0.00021049,2]
[362413746,1748262643989,-421.43059691,0.00021049,2]
[362413747,1748262643998,-500.0,0.00021049,2]
[362413748,1748262644008,-500.0,0.00021049,2]
[362413749,1748262644018,-500.0,0.00021049,2]
[362413750,1748262644028,-500.0,0.00021049,2]
[362413751,1748262644037,-528.46014071,0.00021049,2]
[362413752,1748262644047,-500.0,0.00021049,2]
[362413753,1748262644056,-500.0,0.00021049,2]
[362413754,1748262644065,-378.43559768,0.00021049,2]
[362413755,1748262644077,-121.56440232,0.00021049,2]
[362413756,1748262644087,-500.0,0.00021049,2]
[362413757,1748262644096,-583.84404453,0.00021049,2]
[362413758,1748262644105,-500.0,0.00021049,2]
[362413759,1748262644115,-500.0,0.0002105,2]
[362413760,1748262644125,-130.64816405,0.0002105,2]
[362413762,1748262646426,-369.35183595,0.0002105,2]
[362413763,1748262646437,-1000.0,0.00021059,2]
[362413764,1748262646447,-410.84816405,0.00021059,2]
[362413766,1748262753901,160.395973,0.00013699,2]
[362413776,1748263564914,2000.0,0.00021918,30]
[362413777,1748263625122,-538.50713943,0.000189,2]
[362413778,1748263625147,-205.43419226,0.00018906,2]
[362413779,1748263625173,-3033.3023082,0.00019006,2]
[362413780,1748263625196,-205.43419226,0.00019078,2]
[362413781,1748263625227,-182.535126,0.00019178,2]
[362413782,1748263625251,-300.0,0.0001994,2]
[362413783,1748263625274,-160.0,0.00019941,2]
[362413784,1748263625297,-300.0,0.00019941,2]
[362413785,1748263625320,-300.0,0.00019941,2]
[362413786,1748263625343,-1200.0,0.00019941,2]
[362413787,1748263625365,-300.0,0.00019941,2]
[362413788,1748263625388,-894.64583333,0.00019942,2]
[362413789,1748263625410,-212.59253735,0.00019942,2]
[362413790,1748263625434,-4131.48152456,0.00019942,2]
[362413791,1748263625455,-220.25306176,0.00020031,3]
[362413792,1748263625477,-365.75,0.00020077,2]
[362413793,1748263625499,-1340.45389947,0.00020077,2]
[362413794,1748263625520,-365.75,0.0002008,2]
[362413795,1748263625543,-500.0,0.00020084,2]
[362413796,1748263625566,-500.0,0.00020084,2]
[362413797,1748263625588,-158.66317539,0.00020084,2]
[362413798,1748263625611,-500.0,0.00020084,2]
[362413799,1748263625635,-500.0,0.00020084,2]
[362413800,1748263625659,-500.0,0.00020084,2]
[362413801,1748263625682,-500.0,0.00020084,2]
[362413802,1748263625706,-500.0,0.00020084,2]
[362413803,1748263625730,-500.0,0.00020084,2]
[362413804,1748263625753,-500.0,0.00020084,2]
[362413805,1748263625778,-500.0,0.00020084,2]
[362413806,1748263625806,-500.0,0.00020084,2]
[362413807,1748263625830,-500.0,0.00020084,2]
[362413808,1748263625854,-500.0,0.00020084,2]
[362413809,1748263625878,-500.0,0.00020084,2]
[362413810,1748263625903,-146.26149969,0.00020084,2]
[362413831,1748263832333,160.395973,0.00013699,2]
[362413851,1748263832812,-630.6304833,0.00019159,2]
[362413852,1748263832822,-1913.503696,0.00019391,2]
[362413853,1748263832832,-212.59253735,0.00019758,2]
[362413854,1748263832842,-894.64583333,0.00019758,2]
[362413855,1748263832851,-300.0,0.00020082,2]
[362413856,1748263832861,-300.0,0.00020082,2]
[362413857,1748263832871,-1200.0,0.00020082,2]
[362413858,1748263832880,-217.30708121,0.00020082,2]
[362413859,1748263832947,-282.69291879,0.00020082,2]
[362413860,1748263832957,-500.0,0.00020082,2]
[362413861,1748263832968,-500.0,0.00020082,2]
[362413862,1748263832978,-500.0,0.00020082,2]
[362413863,1748263832987,-500.0,0.00020082,2]
[362413864,1748263832998,-500.0,0.00020082,2]
[362413865,1748263833009,-500.0,0.00020082,2]
[362413866,1748263833019,-500.0,0.00020082,2]
[362413867,1748263833028,-500.0,0.00020082,2]
[362413868,1748263833038,-500.0,0.00020082,2]
[362413869,1748263833048,-500.0,0.00020082,2]
[362413870,1748263833058,-266.99693376,0.00020082,2]
[362413871,1748263833068,-500.0,0.00020082,2]
[362413872,1748263833078,-500.0,0.00020082,2]
[362413873,1748263833088,-500.0,0.00020082,2]
[362413874,1748263833098,-500.0,0.00020082,2]
[362413875,1748263833108,-500.0,0.00020082,2]
[362413876,1748263833118,-500.0,0.00020082,2]
[362413877,1748263833128,-500.0,0.00020082,2]
[362413878,1748263833138,-500.0,0.00020082,2]
[362413879,1748263833149,-500.0,0.00020082,2]
[362413880,1748263833160,-500.0,0.00020082,2]
[362413881,1748263833170,-500.0,0.00020082,2]
[362413882,1748263833180,-500.0,0.00020082,2]
[362413883,1748263833190,-500.0,0.00020082,2]
[362413884,1748263833200,-500.0,0.00020082,2]
[362413885,1748263833210,-500.0,0.00020082,2]
[362413886,1748263833221,-419.02439642,0.00020082,2]
[362413887,1748263833232,-500.0,0.00020082,2]
[362413888,1748263833242,-500.0,0.00020082,2]
[362413889,1748263833252,-500.0,0.00020082,2]
[362413890,1748263833264,-249.05195541,0.00020082,2]
[362413891,1748263833280,-250.94804459,0.00020082,2]
[362413892,1748263833291,-500.0,0.00020082,2]
[362413893,1748263833303,-500.0,0.00020082,2]
[362413894,1748263833313,-500.0,0.00020082,2]
[362413895,1748263833323,-500.0,0.00020089,2]
[362413896,1748263833332,-8088.99899106,0.0002009,2]
[362413897,1748263833346,-948.65496934,0.0002009,2]
[362413965,1748263838542,-300.0,0.00020081,2]
[362413966,1748263838552,-500.0,0.00020082,2]
[362413967,1748263838562,-425.89476055,0.00020082,2]
[362413968,1748263838600,-74.10523945,0.00020082,2]
[362413969,1748263838612,-500.0,0.00020082,2]
[362413970,1748263838622,-500.0,0.00020082,2]
[362413971,1748263838633,-500.0,0.00020082,2]
[362413972,1748263838642,-500.0,0.00020082,2]
[362413973,1748263838651,-500.0,0.00020082,2]
[362413974,1748263838660,-500.0,0.00020082,2]
[362413975,1748263838670,-500.0,0.00020082,2]
[362413976,1748263838680,-500.0,0.00020082,2]
[362413977,1748263838690,-500.0,0.00020082,2]
[362413978,1748263838700,-500.0,0.00020082,2]
[362413979,1748263838710,-15862.3460396,0.0002009,2]
[362413980,1748263838720,-160.0,0.00020098,2]
[362413981,1748263838730,-423.08503179,0.0002014,2]
[362413982,1748263838739,-229.15402412,0.0002014,2]
[362413983,1748263838749,-2169.4375307,0.00020143,2]
[362413984,1748263838759,-627.584502,0.00020391,2]
[362413985,1748263838768,-500.0,0.00020409,2]
[362413986,1748263838779,-500.0,0.00020409,2]
[362413987,1748263838789,-520.16409903,0.00020409,2]
[362413988,1748263838801,-500.0,0.00020409,2]
[362413989,1748263838812,-500.0,0.00020456,2]
[362413990,1748263838823,-500.0,0.0002051,2]
[362413991,1748263838834,-500.88088065,0.0002051,2]
[362413992,1748263838843,-500.0,0.0002051,2]
[362413993,1748263838853,-500.0,0.0002051,2]
[362413994,1748263838862,-500.0,0.0002051,2]
[362413995,1748263838872,-501.17822757,0.000206,2]
[362413996,1748263838890,-593.86165625,0.00020622,2]
[362413997,1748263838904,-500.0,0.00020639,2]
[362413998,1748263838914,-500.0,0.00020639,2]
[362413999,1748263838924,-500.0,0.00020639,2]
[362414000,1748263838934,-500.0,0.00020639,2]
[362414001,1748263838944,-369.9220985,0.00020639,2]
[362414002,1748263838954,-595.00141783,0.00020639,2]
[362414003,1748263838963,-500.0,0.00020639,2]
[362414004,1748263838973,-500.0,0.00020639,2]
[362414005,1748263838983,-500.0,0.00020639,2]
[362414006,1748263838993,-608.69083118,0.00020639,2]
[362414007,1748263839005,-500.0,0.00020639,2]
[362414008,1748263839015,-460.05502489,0.00020639,2]
[362414123,1748263840732,-359.00475962,0.000189,2]
[362414126,1748263840742,-229.15402412,0.0002014,2]
[362414129,1748263840752,-39.94497511,0.00020639,2]
[362414132,1748263840763,-500.0,0.00020639,2]
[362414134,1748263840773,-500.0,0.00020639,2]
[362414136,1748263840782,-242.07017517,0.00020639,2]
[362414377,1748263843632,-257.92982483,0.00020639,2]
[362414378,1748263843642,-578.66501465,0.00020639,3]
[362414392,1748264052882,184.014471,0.00019782,120]
[362414395,1748264240056,1235872.34807008,0.00021918,30]
[362414407,1748264909466,160.395973,0.00013699,2]
[362414409,1748264965114,-500.0,0.000189,2]
[362414410,1748264965136,-282.81165316,0.000189,2]
[362414411,1748264965160,-164.476756,0.00018952,2]
[362414412,1748264965182,-164.77493557,0.0001902,2]
[362414413,1748264965203,-2420.2975131,0.00019043,2]
[362414414,1748264965224,-178.180219,0.00019178,2]
[362414415,1748264965245,-1200.0,0.00019607,2]
[362414416,1748264965267,-300.0,0.00019607,2]
[362414417,1748264965288,-300.0,0.00019608,2]
[362414418,1748264965309,-300.0,0.00019608,2]
[362414419,1748264965331,-300.0,0.00019608,2]
[362414420,1748264965352,-10000.0,0.00019609,2]
[362414421,1748264965375,-263.41769427,0.00019627,2]
[362414462,1748265032822,-693.852935,0.00019174,2]
[362414463,1748265032834,-523.80289853,0.00019627,2]
[362414464,1748265032845,-160.0,0.00019758,2]
[362414465,1748265032857,-184.014471,0.00019782,2]
[362414466,1748265032868,-182.87,0.00019788,2]
[362414467,1748265032879,-377.72628141,0.00019818,2]
[362414468,1748265032888,-274.62489262,0.0002002,2]
[362414469,1748265032899,-212.59253735,0.00020079,2]
[362414470,1748265032909,-160.0,0.00020079,2]
[362414471,1748265032919,-229.15402412,0.00020079,2]
[362414472,1748265032929,-830.21,0.0002048,2]
[362414473,1748265032941,-156.22453146,0.00020533,2]
[362414474,1748265032952,-300.0,0.00020631,2]
[362414475,1748265032963,-1200.0,0.00020631,2]
[362414476,1748265032973,-448.09388937,0.000209,4]
[362414477,1748265032983,-500.0,0.00020999,2]
[362414478,1748265032994,-500.0,0.00020999,2]
[362414479,1748265033004,-500.0,0.00020999,2]
[362414480,1748265033015,-464.91418351,0.00020999,2]
[362414481,1748265033025,-500.0,0.00020999,2]
[362414482,1748265033035,-610.70089706,0.00020999,2]
[362414483,1748265033046,-246.58288512,0.00020999,2]
[362414484,1748265033056,-500.0,0.00020999,2]
[362414485,1748265033067,-500.0,0.00020999,2]
[362414486,1748265033078,-500.0,0.00020999,2]
[362414487,1748265033088,-500.0,0.00020999,2]
[362414488,1748265033098,-500.0,0.00020999,2]
[362414489,1748265033108,-500.0,0.00020999,2]
[362414490,1748265033119,-500.0,0.00020999,2]
[362414491,1748265033130,-500.0,0.00020999,2]
[362414492,1748265033141,-500.0,0.00020999,2]
[362414493,1748265033152,-500.0,0.00020999,2]
[362414494,1748265033168,-500.0,0.00020999,2]
[362414495,1748265033179,-10000.0,0.00021,5]
[362414496,1748265033193,-10000.0,0.00021,5]
[362414497,1748265033203,-10000.0,0.00021,5]
[362414498,1748265033214,-10000.0,0.00021,5]
[362414499,1748265033224,-10000.0,0.00021,5]
[362414500,1748265033235,-10000.0,0.00021,5]
[362414501,1748265033245,-10000.0,0.00021,5]
[362414502,1748265033256,-10000.0,0.00021,5]
[362414503,1748265033267,-152.027269,0.00021,2]
[362414504,1748265033277,-10000.0,0.00021,5]
[362414505,1748265033287,-277.3,0.0002102,2]
[362414506,1748265033298,-170.10021423,0.0002102,2]
[362414507,1748265033308,-448.09388923,0.00021072,4]
[362414508,1748265033319,-547.11043742,0.00021155,2]
[362414509,1748265033329,-500.0,0.00021164,2]
[362414510,1748265033339,-448.09388923,0.00021245,4]
[362414511,1748265033349,-420.0,0.00021359,2]
[362414512,1748265033359,-448.09388923,0.00021417,5]
[362414513,1748265033370,-518.43483232,0.00021454,2]
[362414514,1748265033380,-903.55574157,0.00021511,2]
[362414515,1748265033390,-500.0,0.00021558,2]
[362414516,1748265033400,-447.39613936,0.00021558,2]
[362414517,1748265033410,-500.0,0.00021558,2]
[362414518,1748265033420,-448.09388923,0.0002159,5]
[362414519,1748265033431,-266.19424424,0.00021738,2]
[362414520,1748265033443,-448.09388923,0.00021762,5]
[362414521,1748265033454,-500.0,0.00021788,2]
[362414522,1748265033465,-500.0,0.00021857,2]
[362414523,1748265033475,-506.46803802,0.00021857,2]
[362414524,1748265033485,-500.0,0.00021857,2]
[362414525,1748265033495,-500.0,0.00021857,2]
[362414526,1748265033505,-500.0,0.0002189,2]
[362414527,1748265033515,-500.0,0.0002189,2]
[362414528,1748265033525,-3166.15136058,0.00021906,2]
[362414529,1748265033535,-448.09388923,0.00021934,6]
[362414530,1748265033545,-500.0,0.00021959,2]
[362414531,1748265033555,-500.0,0.00021959,2]
[362414532,1748265033564,-500.0,0.0002197,2]
[362414533,1748265033574,-500.0,0.0002197,2]
[362414534,1748265033585,-182.87,0.0002199,2]
[362414535,1748265033595,-152.158111,0.00021993,7]
[362414536,1748265033605,-151.0,0.00021993,7]
[362414537,1748265033615,-304.560722,0.00021993,7]
[362414538,1748265033625,-304.560722,0.00021993,7]
[362414539,1748265033634,-152.985598,0.00021993,7]
[362414540,1748265033645,-151.731635,0.00021993,7]
[362414541,1748265033655,-289.173017,0.00021993,7]
[362414542,1748265033666,-289.173017,0.00021993,7]
[362414543,1748265033676,-151.0,0.00021993,7]
[362414544,1748265033686,-151.0,0.00021993,7]
[362414545,1748265033699,-151.0,0.00021993,7]
[362414546,1748265033708,-151.0,0.00021994,7]
[362414547,1748265033718,-151.0,0.00021994,7]
[362414548,1748265033728,-151.0,0.00021994,7]
[362414549,1748265033738,-151.0,0.00021994,7]
[362414550,1748265033750,-151.0,0.00021994,7]
[362414551,1748265033764,-223.037671,0.00021994,7]
[362414552,1748265033774,-151.0,0.00021994,7]
[362414553,1748265033786,-151.0,0.00021994,7]
[362414554,1748265033796,-151.0,0.00021996,7]
[362414555,1748265033807,-151.0,0.00021996,7]
[362414556,1748265033818,-151.0,0.00021996,7]
[362414557,1748265033829,-151.0,0.00021996,7]
[362414558,1748265033840,-250.863,0.00021996,7]
[362414559,1748265033850,-151.0,0.00021996,7]
[362414560,1748265033859,-151.0,0.00021996,7]
[362414561,1748265033868,-151.0,0.00021996,7]
[362414562,1748265033879,-151.0,0.00021997,7]
[362414563,1748265033889,-151.0,0.00021998,7]
[362414564,1748265033899,-151.0,0.00021998,7]
[362414565,1748265033909,-151.0,0.00021998,7]
[362414566,1748265033918,-151.0,0.00021998,7]
[362414567,1748265033928,-151.0,0.00021998,7]
[362414568,1748265033938,-155.652703,0.00021998,7]
[362414569,1748265033951,-155.652703,0.00021998,7]
[362414570,1748265033960,-151.0,0.00021998,2]
[362414571,1748265033970,-151.0,0.00021998,7]
[362414572,1748265033980,-151.0,0.00021998,7]
[362414573,1748265033990,-151.0,0.00021998,7]
[362414574,1748265033999,-248.273515,0.00021998,7]
[362414575,1748265034009,-239.327451,0.00021998,2]
[362414576,1748265034019,-239.327451,0.00021998,2]
[362414577,1748265034028,-151.0,0.00021998,7]